Cogmind - Beta 15 @@@ ROGUE MODE // 2025.06.05 @ 16:17:56 Player: Savant Result: Destroyed by B9-XDC(R) with Subdweller Laser Performance ------------- Evolutions (0) 0 Regions Visited (2) 400 Robots Destroyed (18) 90 Value Destroyed (382) 382 Prototype IDs (2) 40 Alien Tech Used (0) 0 Bonus (0) 0 TOTAL SCORE: 912 Bonus ------- None Cogmind --------- Core Integrity 0/250 Matter 239/300 Energy 200/200 System Corruption 0% Temperature Cool (6) Movement Rolling (100) Location -10/Subcaves Parts ------- > --- POWER (1) -------- Subdweller Power Source > --- PROPULSION (2) --- Compact Wheel > --- UTILITY (2) ------ (None) > --- WEAPON (2) ------- Mining Claw > --- INVENTORY (5) ---- Ion Engine Large Storage Unit Grenade Launcher Multitool Peak State ------------ > --- POWER ------------ Light Nuclear Core > --- PROPULSION ------- Light Treads Light Treads > --- UTILITY ---------- Large Storage Unit Seismic Detector > --- WEAPON ----------- Beam Cannon Battle Rifle > --- INVENTORY -------- Ion Engine Aluminum Leg Aluminum Leg Compact Wheel Compact Wheel Small Laser Small Laser Light Assault Rifle Grenade Launcher Mining Laser Multitool Mining Claw [Rating: 11] Favorites ----------- Power Ion Engine Engine Ion Engine Power Core Light Nuclear Core Propulsion Light Treads Treads Light Treads Leg Aluminum Leg Wheel Compact Wheel Utility Seismic Detector Device Seismic Detector Storage Large Storage Unit Protection Scrap Shield Weapon Light Assault Rifle Energy Cannon Beam Cannon Ballistic Gun Light Assault Rifle Launcher Grenade Launcher Special Weapon Mining Laser Slashing Weapon Mining Claw Build | -11 -10 -10 ------- Run | Yrd Mat Sub Slots Evolved . | . . . Power . | . . . Propulsion . | . . . Utility . | . . . Weapon . | . . . Parts Attached 22 | 7 9 6 Power 3 | 1 1 1 Engine 2 | 1 . 1 Core 1 | . 1 . Reactor . | . . . Propulsion 7 | 2 2 3 Treads 3 | 2 1 . Leg 1 | . . 1 Wheel 3 | . 1 2 Hover . | . . . Flight . | . . . Utility 5 | 2 2 1 Device 2 | 1 1 . Storage 2 | 1 1 . Processor . | . . . Hackware . | . . . Protection 1 | . . 1 Artifact . | . . . Weapon 7 | 2 4 1 Energy Gun . | . . . Energy Cannon 1 | . 1 . Ballistic Gun 3 | 2 . 1 Ballistic Cannon . | . . . Launcher 1 | . 1 . Special Weapon 1 | . 1 . Impact Weapon . | . . . Slashing Weapon 1 | . 1 . Piercing Weapon . | . . . Special Melee Weapon . | . . . Unidentified Prototypes . | . . . Parts Lost 12 | . 4 8 Power 1 | . 1 . Propulsion 6 | . 1 5 Utility 2 | . 1 1 Weapon 3 | . 1 2 Highest Loss Streak 4 | . 4 4 To Critical Strikes . | . . . Average Backups 10 | 4 9 11 Power 1 | . 1 1 Propulsion 3 | 2 3 3 Utility . | . . 1 Weapon 4 | 1 3 5 Tool/Special . | . . . Unused Backups 7 | . . 7 Power 1 | . . 1 Propulsion 1 | . . 1 Utility 2 | . . 2 Weapon 2 | . . 2 Tool/Special 1 | . . 1 Average Slot Usage (%) 99 | . 98 99 Engine 8 | . 12 4 Core 5 | . 1 9 Treads 20 | . 26 13 Leg 2 | . . 4 Wheel 5 | . 1 10 Device 13 | . 12 13 Storage 13 | . 14 13 Energy Cannon 6 | . 1 11 Ballistic Gun 19 | . 24 13 Slashing Weapon 1 | . . 2 Peak Build Rating 11 | 7 10 11 Average Rating 8 | 5 7 10 On Entrance 5 | . 7 10 Naked Turns . | . . . Heaviest Build 31 | 13 31 31 Greatest Support 40 | 40 40 40 Greatest Overweight (x) 2 | . 1 2 Average Overweight (x) . | . . . Largest Inventory Capacity 15 | 8 15 15 Average Capacity 13 | 7 13 14 Most Carried 14 | 8 12 14 Average Carried 10 | 4 9 11 Final Capacity 15 | 8 15 5 Final Carried 10 | 7 10 4 Class Distribution -------------------- 100% | Mutant Dominant Class ---------------- Mutant | -10/Materials Mutant | -10/Subcaves Resources | -11 -10 -10 ----------- Run | Yrd Mat Sub Matter Collected 799 | 288 250 261 Remotely . | . . . Salvage Created 533 | 105 379 49 Parts 36 | 6 26 4 Haulers Intercepted 1 | . 1 . Recyclers Shooed 2 | . 2 . Parts Field Recycled . | . . . Retrieved Matter . | . . . Parts Self-Destructed 2 | . . 2 Prevented . | . . . Kills | -11 -10 -10 ------- Run | Yrd Mat Sub Combat Hostiles Destroyed 12 | . 9 3 Guns 6 | . 6 . Cannons 2 | . 1 1 AOE 4 | . 2 2 Classes Destroyed 8 | 2 5 1 Builder 1 | . 1 . Tunneler 1 | 1 . . Hauler 1 | . 1 . Recycler 1 | 1 . . Watcher 2 | . 2 . Swarmer 5 | . 3 2 Grunt 6 | . 6 . Subdweller 1 | . . 1 Best Kill Streak 2 | 1 2 1 Combat Bots Only 2 | . 2 1 Max Kills in Single Turn 2 | 1 2 1 Gunslinging . | . . . Exploded 2 | . 2 1 Melee . | . . . Uniques/NPCs Destroyed . | . . . Combat | -11 -10 -10 -------- Run | Yrd Mat Sub Hostile Shots Fired 101 | . 61 40 Missed 24 | . 15 9 Hits 77 | . 46 31 Projectile 77 | . 46 31 AOE 2 | . 1 1 Critical Strikes 2 | . 1 1 Damage Taken 1438 | . 657 781 Core 260 | . 144 116 Absorbed by Shields . | . . . Core Remaining (%) 100 | 100 . . Volleys Fired 99 | 9 70 20 Largest 2 | 2 2 2 Hottest 120 | 40 120 85 Shots Fired 172 | 18 121 33 Gun 120 | 18 89 13 Cannon 32 | . 19 13 Launcher 10 | . 3 7 Special 10 | . 10 . Kinetic 120 | 18 89 13 Thermal 42 | . 29 13 Explosive 10 | . 3 7 Electromagnetic . | . . . Robot Hit Streak 10 | 7 10 10 Robot Miss Streak 4 | 2 4 2 Penetration Max . | . . . Secondary Targets 1 | . 1 . Max Gunslinging Chain 1 | . 1 . Shots Hit Robots 99 | 12 62 25 Core Hits 40 | 5 28 7 Critical Kills . | . . . Critical Parts Destroyed . | . . . Critical Strikes 1 | . . 1 Destroy 1 | . . 1 Melee Attacks 21 | . 3 18 Impact . | . . . Slashing 21 | . 3 18 Piercing . | . . . Sneak Attacks . | . . . Combat Hostiles . | . . . Follow-up Attacks . | . . . Damage Inflicted 1319 | 91 749 479 Guns 616 | 91 384 141 Cannons 438 | . 247 191 Explosions 219 | . 96 123 Melee 24 | . . 24 Ramming 22 | . 22 . Kinetic 616 | 91 384 141 Thermal 438 | . 247 191 Explosive 219 | . 96 123 Electromagnetic . | . . . Impact . | . . . Slashing 24 | . . 24 Piercing . | . . . Highest Corruption . | . . . Average Corruption . | . . . Corruption Purged . | . . . Corruption Blocked . | . . . Overload Shots . | . . . Overflow Damage 5 | . 5 . Projectiles . | . . . Explosions 5 | . 5 . Melee . | . . . Knockbacks . | . . . Impact . | . . . Kinetic . | . . . Secondary . | . . . Self-Inflicted Damage 101 | . 19 82 Shots 4 | . 1 3 Rammed 6 | . 6 . Targets Rammed 6 | . 6 . Kicked . | . . . Crushed . | . . . Highest Temperature 353 | . 353 28 Average Temperature 97 | . 107 8 Received Heat Transfer 390 | . 312 78 Effects 2 | . 2 . Energy Bleed 1 | . 1 . Interference 1 | . 1 . Siege Activations . | . . . Martial Activations . | . . . Shielding Activations . | . . . Robots Disrupted . | . . . Combat Hostiles . | . . . Robots Corrupted . | . . . Combat Hostiles . | . . . Parts Fried . | . . . Impact Corruptions . | . . . Robots Melted . | . . . Combat Hostiles . | . . . Parts Melted . | . . . Heat Transferred 925 | . 518 407 Parts Sabotaged . | . . . Parts Stolen . | . . . Parts Stripped . | . . . Power Chain Reactions . | . . . Alert | -11 -10 -10 ------- Run | Yrd Mat Sub Maximum Alert Level . | . . . Low Security (%) 100 | 100 100 . Level 1 . | . . . Level 2 . | . . . Level 3 . | . . . Level 4 . | . . . Level 5 . | . . . High Security . | . . . Max Security . | . . . Peak Influence 146 | 5 146 . Initial . | . . . Average 35 | . 38 . Influence Increases 446 | 10 396 40 Destroy 0b10 Robot/C 220 | . 180 40 Destroy 0b10 Robot/NC 30 | 10 20 . Destroy Leader 46 | . 46 . Successful Hack 30 | . 30 . Select Force Hacks 30 | . 30 . Disable Machine 15 | . 15 . Destroy Structure 30 | . 30 . Lose Combat Pursuer 45 | . 45 . Influence Decreases 446 | 10 391 45 Entered New Map 3 | . . 3 Time Decay 411 | 10 359 42 Lost Part 32 | . 32 . Squads Dispatched 1 | . 1 . Investigation 1 | . 1 . Extermination . | . . . Reinforcement . | . . . Assault . | . . . Garrison . | . . . Intercept . | . . . Searches Triggered . | . . . Construction Impeded . | . . . Haulers Reinforced . | . . . Active Scanning Responses . | . . . Cargo Convoy Interrupts . | . . . Stealth | -11 -10 -10 --------- Run | Yrd Mat Sub Distress Signals . | . . . Communications Jammed . | . . . Distress Signals . | . . . Times Spotted 28 | . 21 7 Peak Tracking Total 4 | . 4 2 Tactical Retreats 2 | . 2 . Traps | -11 -10 -10 ------- Run | Yrd Mat Sub Traps Triggered 2 | . . 2 Indirectly . | . . . Trap Hack Attempts . | . . . Triggered . | . . . Disarmed . | . . . Reprogrammed . | . . . Reused . | . . . Traps Extracted . | . . . Installed . | . . . Triggered . | . . . Machines | -11 -10 -10 ---------- Run | Yrd Mat Sub Machines Disabled 1 | . 1 . Max in Single Turn 1 | . 1 . Machines Repaired . | . . . Machines Dismantled . | . . . Machines Sabotaged . | . . . Overloaded Fab Kills . | . . . Hacking | -11 -10 -10 --------- Run | Yrd Mat Sub Machines Accessed 9 | . 9 . Terminals 8 | . 8 . Fabricators . | . . . Repair Stations . | . . . Recycling Units 1 | . 1 . Scanalyzers . | . . . Garrison Access . | . . . Total Hacks 26 | . 26 . Successful 15 | . 15 . Failed 10 | . 10 . Catastrophic 1 | . 1 . Database Lockouts 1 | . 1 . Manual 24 | . 24 . Terminals 25 | . 25 . Fabricators . | . . . Repair Stations . | . . . Recycling Units 1 | . 1 . Scanalyzers . | . . . Garrison Access . | . . . Terminal Hacks 4 | . 4 . Part Schematic 1 | . 1 . Robot Analysis 1 | . 1 . Prototype ID Bank 1 | . 1 . Locate Traps 1 | . 1 . Fabricator Hacks . | . . . Repair Station Hacks . | . . . Recycling Unit Hacks . | . . . Scanalyzer . | . . . Garrison Access Hacks . | . . . Unauthorized Hacks 11 | . 11 . Terminals 10 | . 10 . Track 1 | . 1 . Assimilate 2 | . 2 . Botnet 1 | . 1 . Operators 1 | . 1 . Skim 5 | . 5 . Fabricators . | . . . Repair Stations . | . . . Recycling Units 1 | . 1 . Tunnel 1 | . 1 . Scanalyzers . | . . . Garrison Access . | . . . Data Cores Recovered . | . . . Used . | . . . Hacking Detections 7 | . 7 . Full Trace Events . | . . . Feedback Events . | . . . Feedback Blocked . | . . . Robot Schematics Acquired . | . . . Robots Built . | . . . Authchips . | . . . Time . | . . . Total Robot Build Rating . | . . . Part Schematics Acquired 1 | . 1 . Parts Built . | . . . Authchips . | . . . Time . | . . . Total Part Build Rating . | . . . Parts Repaired . | . . . Time . | . . . Parts Recycled . | . . . Recycled Matter . | . . . Retrieved Matter . | . . . Retrieved Components . | . . . Parts Scanalyzed . | . . . Part Schematics Acquired . | . . . Parts Damaged . | . . . Bothacking | -11 -10 -10 ------------ Run | Yrd Mat Sub Used RIF Installer . | . . . Robots Hacked . | . . . Non-combat . | . . . Combat . | . . . Robot Hacks Applied . | . . . Relay Couplers Released . | . . . Fabnet Peak Effective % . | . . . Robots Rewired . | . . . Allies Hacked . | . . . Hacks Repelled . | . . . Allies | -11 -10 -10 -------- Run | Yrd Mat Sub Total Allies 1 | . 1 . Largest Group 1 | . 1 1 Highest-Rated Group 10 | . 10 10 Highest-Rated Ally 10 | . 10 10 Total Orders . | . . . Ally Attacks . | . . . Total Damage . | . . . Kills . | . . . Allies Corrupted . | . . . Allies Melted . | . . . Intel | -11 -10 -10 ------- Run | Yrd Mat Sub Active Infowar (turns) 3034 | 33 1432 1569 Terrain 23 | . 23 . Seismic 3011 | 33 1409 1569 Robot Analysis Total 1 | . 1 . Derelict Logs Recovered . | . . . Drone Launches . | . . . Drone Recoveries . | . . . Exploration | -11 -10 -10 ------------- Run | Yrd Mat Sub Turns Passed 3327 | 151 1578 1598 Spaces Moved 1670 | 70 810 790 Core 2 | 2 . . Treads 1044 | 68 718 258 Legs . | . . . Wheels 624 | . 92 532 Hover . | . . . Flight . | . . . Fastest Speed 50 | 50 115 110 Average Speed 143 | 156 155 129 Slowest Speed 240 | 160 240 160 Overloaded Moves . | . . . Propulsion Burnouts . | . . . Robots Hopped . | . . . Potential Cave-ins . | . . . Cave-ins Triggered . | . . . Exploration Rate (%) 38 | 5 77 33 Regions Visited 2 Branch Regions 1 Pre-discovered Areas 2 | . 2 . Known Exits Taken 1 | . 1 . Unknown Exits Taken 1 | 1 . . Scrap Searched 1 | . . 1 Spaces Dug 15 | . 15 . Terrain Destroyed 63 | . 35 28 Melee . | . . . Projectile 10 | . 10 . AOE 53 | . 25 28 Terrain Rammed . | . . . Walls Destroyed . | . . . Machines Disabled . | . . . Actions | -11 -10 -10 --------- Run | Yrd Mat Sub Total 2374 | 94 991 1289 Wait 501 | 1 75 425 Move 1668 | 69 809 790 Hop . | . . . Pick Up 22 | 8 7 7 Fast Attach 7 | 6 . 1 Attach 11 | 1 4 6 Detach 1 | . . 1 Swap 31 | . 16 15 Drop 7 | . 1 6 Fire 99 | 9 70 20 Melee 21 | . 3 18 Ram . | . . . Kick . | . . . Crush 6 | . 6 . Escape Stasis . | . . . Rewire . | . . . Trap . | . . . Miscellaneous . | . . . Route ------- -11/Scrapyard -10/Materials (discovered 4 exits: *Mat x3 / *Sub) -10/Subcaves History --------- Turn | Location | Event 13 | -11/Scrapyard | Discovered new exit (range 15) 152 | -11/Scrapyard | Entered Materials 305 | -10/Materials | Build established: Mutant 342 | -10/Materials | Discovered new exit (range 4) 1285 | -10/Materials | Learned Storage trap positions 1315 | -10/Materials | Identified exit to Materials 1327 | -10/Materials | Discovered exit to Materials (range 7) 1333 | -10/Materials | Learned location of Storage (-7) 1342 | -10/Materials | Learned 4 Recycling zone layouts 1343 | -10/Materials | Learned 2 Storage zone layouts 1376 | -10/Materials | Identified exit to Subcaves 1429 | -10/Materials | Central database locked down 1568 | -10/Materials | Core integrity fell below 50% 1596 | -10/Materials | Lost 4 parts (1p1n1u1w) 1730 | -10/Materials | Entered Subcaves 1730 | -10/Subcaves | Accompanied by 1 ally 1731 | -10/Subcaves | Approached by a straggling Scientist 2172 | -10/Subcaves | Disturbed a concealed Subdweller 3291 | -10/Subcaves | A swath of the cavern ceiling suddenly collapsed 3325 | -10/Subcaves | Core integrity fell below 20% 3328 | -10/Subcaves | Destroyed by B9-XDC(R) with Subdweller Laser Last Messages --------------- 02901_ WL-CF4(u) tweaks Twisted Machinery. 03078_ Acquired Scrap Shield. 03082_ Dropped Mining Laser. 03083_ Dropped Sml. Laser. 03085_ Dropped Lgt. Nuclear Core. 03160_ Acquired 27 matter. 03257_ Subatomizers dissect the Mining Laser. A swath of the cavern ceiling suddenly collapses. 03292_ 11-OU6(R) emerges from the Twisted Machinery. 03295_ Subatomizers dissect the Mining Laser. 03298_ Dropped Lrg. Storage Unit. 03299_ Dropped Seismic Detector. 03302_ Acquired Grenade Launcher. 03304_ Acquired Lrg. Storage Unit. 03310_ 11-OU6(R) suffers critical hit (Destroy). 03314_ Scrap Shield destroyed. 03317_ Subatomizers dissect the Sub. Optics. 03320_ Battle Rifle destroyed. 03322_ Beam Cannon destroyed. 03326_ Aluminum Leg destroyed. Map ----- +----------------------------------------------------+ | ?????????????????????????????????????????????????? | | ?????????????????????????????????????????????????? | | ?????????????????????????????????????????????????? | | ?????????????????????????????????????????????????? | | ?????????????????????????????????????????????????? | | ?????????????????????????????????????????????????? | | ?????????????????????????????????????????????????? | | ?????????????????????????????????????????????????? | | ?????????????????????????????????????????????????? | | ?????????????????????????????????????????????????? | | ?????????????????????????????????????????????????? | | ?????????????????????????????????????????????????? | | ?????????????????????????????????????????????????? | | ????????????????????????????? ???????????????????? | | ?????????????????????????????% ??????????????????? | | ????????????????????????????? ??????????????????? | | ????????????????????????????? ??????????????????? | | ???????????????????????????? #??????????????????? | | ???????????????????????????? #????? ##??????????? | | ???????????????????????????? #????"" ???????????? | | ???????????????????????????? ???" ????????????? | | ???????????????????????????? ##?" #?????????????? | | ????????????????????###????? # ##?????????????? | | ????????????????????# #??## # ##????????????? | | ????????????????????# ###;#" "" ## #????????? | | ?????????????????????? ##@ #"## " #????????? | | ???????????????# ???###R R=#" " ??????????? | | ????????????????# ##"##[!#; " #??????????????? | | ????????????????# #"";;!;" #??????????????? | | ??????###???????# ###;#;; ##??????????????? | | ###### ##???????## ?###";### ##???????????????? | | ## ### #??# ## # #??###????????????????? | | #?# # ########??????????????? | | # ## " & ## # ##?????????????? | | ##### "" #?????????????? | | #???## " ### ## ## #?????????????? | | #?????" #?# ?#####?# # # ###???????????? | | #????? "#?#?????????## #### #???????????? | | ??????# ????????????# [#! ### #???????????? | | ??????# ???????????##|##& #???????????? | | ?????## #???????##??#[*# ##???????????? | | ?????# #???????#"### ### ##????????????? | | ?????# ##???????##""" ##?## #?????????????? | | ?????? ##????????#"""" #???# ###???????????? | | ?????? #?????????#""" ##??## #???????????? | | ??????# ##?????????#""" #??## #???????????? | | ??????# #??????????##" "#?## ## #???????????? | | ??????? ##???????####" #### ### ##??????????? | | ??????## #???????# "" ""## ### #??????????? | | ??????# #???????# " ""#### ## #??????????? | +----------------------------------------------------+ Best States ------------- Heat Dissipation 25 Energy Generation 14 Energy Capacity 250 Matter Stores 300 Matter Capacity 300 Sight Range 16 Terrain Scan Range 14 Terrain Scan Density 10 Armor Coverage 800 Evasion (%) 40 Recoil Reduction 2 Item Schematics ----------------- Huge Storage Unit | -10/Materials | Hacked Robot Schematics ------------------ None Fabricated ------------ Nothing Repaired ---------- Nothing Alien Tech Used ----------------- None Achievements -------------- None Challenges ------------ None Game ------ Seed SpreadWeaponProjector Manual? 0 Play Time 00:23:20 Cumulative 923.2 hours Start 2025.06.05 @ 15:54:53 End 2025.06.05 @ 16:17:56 Sessions 1 Manual Loads 0 Difficulty Rogue Special Mode None Game No. 174 Rogue 174 Adventurer 0 Explorer 0 Win Type - Total 52 Types 23/4/9/1/3/1/6/2/2/1 Lore% 89 Gallery% 92 Achievement% 91 Wizard Run 0 Options --------- Layout 0 ASCII 0 Keyboard 0 Movement Numpad Keybinds 0 Fullscreen 1 Font 18/SmallcapsGlow Map View 76x50 Zoom Use 0% Tactical HUD 1 Map Filters NONE Filters NONE Steam 1 RUN: 5cbc545e-7f82-4f0e-bb92-0681896f9ac9